{"text_format":"1","workbook":"xlsx","n_sheets":1,"sheets":["Medicines & Surgical Items "],"not_rendered":{"charts":0,"images":0,"macros":1,"external_links":0,"defined_names":3,"comments":0,"pivot_tables":0},"unopened":[],"bounds":{"document_bytes":16777216,"sheet_cells":100000,"rows_first":2000,"rows_last":500,"rows_between":2000,"halvings":0,"cell_chars":16384,"cell_head_chars":4096},"cells_cut":0,"cells_raw":0,"read":"whole","date_system":"1900"}

{"sheet":"Medicines & Surgical Items ","index":0,"n_rows":118,"n_cols":10,"rows_kept":118,"cut":false,"hidden":false,"merged":[[108,0,108,7],[117,0,117,1],[109,2,109,7],[110,2,110,7],[111,2,111,7],[112,2,112,7],[113,2,113,7],[114,2,114,7],[109,0,109,1],[110,0,110,1],[111,0,111,1],[112,0,112,1],[113,0,113,1],[114,0,114,1],[0,0,0,9],[1,0,1,9],[2,0,2,9],[3,0,3,3],[3,6,3,9]]}
["Sunaulo Parivar Nepal"]
["Price Schedule"]
["RFP/SPN/2024/007 (Stationery and Office Supplies)"]
["* Please note that Price schedule should be computer typed.  "]
["SN","Districts","UoM","Tentative Annual Rquirement","Standard Specification","Quotated Specification","Unit Price\n(NPR)","Vat","Total Price after tax","Remarks / Additional Information"]
[1,"Battery - AA","Pcs",50,"Duracell  /  AA",null,null,null,{"$f":"+G6+H6","v":0}]
[2,"Battery AAA","Pcs",250,"Duracell  /  AAA",null,null,null,{"$f":"+G7+H7","v":0}]
[3,"Battery Maxell Alkaline","Pcs",50,"Maxell  /  Maxell Alkaline battery 9V type.",null,null,null,0]
[4,"Binder clips - big ","Box",200,"Ding Li  /  51mm (12pcs/box)",null,null,null,0]
[5,"Binder clips - medium","Box",200,"Ding Li  /  41mm (12pcs/box)",null,null,null,0]
[6,"Binder clips - small","Box",200,"Ding Li  /  19mm (12pcs/box)",null,null,null,0]
[7,"Binding Tape 1 inch","Roll",20,"Good Quality  /  Tape Size - 1 inch in black colour, durable and high tack self adhesive tape. ",null,null,null,0]
[8,"Binding Tape  2 inch","Roll",20,"Good Quality  /  Tape Size - 2 inch in black colour, durable and high tack self adhesive tape. ",null,null,null,0]
[9,"Blu tack ","Pkts",10,"Bostik  /  75g",null,null,null,0]
[10,"Book Stand","Pcs",20,"Good Quality  /  Normal Size",null,null,null,0]
[11,"Calculator","Pcs",25,"Casio  /  12 digit (5\" X 7\")",null,null,null,0]
[12,"Carbon Paper","Pkts",50,"CAMILIN  /  100 pcs / Pkt",null,null,null,0]
[13,"Certificate File - A4 Size","Pcs",30,"Good Quality  /  hard Plastic Cover with 20 sheets",null,null,null,0]
[14,"Chart paper","pcs",100,"Good Quality  /   140 GSM (710 x 560 MM )",null,null,null,0]
[15,"Clipboard","Pcs",25,"Good Quality  /  PVC SINGLE SIDED CLIP BOARD A4",null,null,null,0]
[16,"Colorful Rubber Band for Money","Pkts",25,"Good Quality  /  Package contains of 100g of multicolor rubber band.",null,null,null,0]
[17,"Duster","Pcs",25,"Good Quality  /  Plastic Body Magnetic White Board Duster.",null,null,null,0]
[18,"Envelope - Normal, small","Pcs",1000,"Good Quality  /  Moisture activated gummed closure.",null,null,null,0]
[19,"Envelope -A4 Size","Pcs",1000,"Good Quality  /  Moisture activated gummed closure.",null,null,null,0]
[20,"Eraser ","Pcs",100,"Good Quality  /  Normal Size",null,null,null,0]
[21,"File - Box","Pcs",25,"Good Quality  /   A4 size  botton Plastic file Box",null,null,null,0]
[22,"File - Business","Pcs",200,"Good Quality  /  A4 Size, Transparent,Quality storage and durability",null,null,null,0]
[23,"File - Index ","Pcs",2000,"Good Quality  /  A4 size 3'' width, ",null,null,null,0]
[24,"File - Magazine","Pcs",25,"Good Quality  /  1 slots,Made of hard plastic with smooth coating",null,null,null,0]
[25,"File - Nepali, Record","Pcs",500,"Good Quality  /  A4 size ",null,null,null,0]
[26,"File - Ring File ","Pcs",500,"Good Quality  /  A4 size",null,null,null,0]
[27,"File - Vertical Hanging","Pcs",500,"Good Quality  /  size- 240*369mm FC",null,null,null,0]
[28,"File Divider","Pkt",2000,"HUAJIE  /  A4 size, 100gram",null,null,null,0]
[29,"File Organizer / Rack - 3 layer","Pcs",20,"Good Quality  /  File Rack File Holder 3-Layer Thickened Plastic ",null,null,null,0]
[30,"Flip chart Paper","Roll",25,"Good Quality  /  Calendar type spiral bound paper sheets  (Sheets Size: 20\" x 30\") (50 sheet/box)",null,null,null,0]
[31,"Glue stick","Pcs",200,"Glue Sticks  /  Glue Sticks 35g",null,null,null,0]
[32,"Hi-Lighter","Pcs",200,"Snowman  /  Hauser Glow Highlighter  or Equivalent",null,null,null,0]
[33,"Marker - Board, Temporary","Pcs",200,"Snowman  /  Snowman Color Board Marker",null,null,null,0]
[34,"Marker - Permanent, round tip","Pcs",200,"Snowman  /  Snowman Color Marker",null,null,null,0]
[35,"Meta Card / Flashcards - 3\" X 5\"","Pcs",1000,"Good Quality  /  various colour.",null,null,null,0]
[36,"Meta Card / Flashcards - 5\" X 7\"","Pcs",1000,"Good Quality  /  various colour.",null,null,null,0]
[37,"My Clear Bag - Good quality","Pcs",1000,"Good Quality  /  Size A4,FC , 12 pcs Pkt.",null,null,null,0]
[38,"Name Tag Stickers (Sticky Note)","Pkt",100,"Good Quality  /  ag Stickers (Sticky Note)",null,null,null,0]
[39,"Newsprint Paper","Pcs",500,"Good Quality  /  25lbs Newsprint 24x36 Sheets",null,null,null,0]
[40,"Note Book - Spiral","Pcs",1000,"Brothers or Equivalent  /  Normal Size -A5, 100 page",null,null,null,0]
[41,"Note Book - Thick Cover","Pcs",500,"Brothers or Equivalent  /  Size- A4, 100 page, Cover- hard and black",null,null,null,0]
[42,"OHP Pen Twin Point Marker Tip","Pcs",200,"Pilot or Equivalent  /  Permanent CD DVD Twin Point Marker Tip Fine 2.0 Extra Fine 0.8",null,null,null,0]
[43,"Paper - A4 Size","Rim",3000,"Double  A  /  A4 size paper 80 Gms",null,null,null,0]
[44,"Paper - Sticky, A4 Size","Pkts",50,"Oddy or Equivalent  /  A4 Self Adhesive Paper Label Stickers for Laser & Inkjet Printers",null,null,null,0]
[45,"Paper clips ","Pkt",500,"Good Quality  /  Paper Clips, U Clips, Multi-Color 100 pcs/pkt",null,null,null,0]
[46,"Paper Cutter / Utility Knife","Pcs",50,"Good Quality  /  Paper Cutter/ Utility Knife 18 mm blade ",null,null,null,0]
[47,"Paper Towel (Softy M fold )","Pkt",2500,"Good Quality  /  Softy M fold Paper Tower Tissue Paper 150 Sheets",null,null,null,0]
[48,"Pen - Dotpen","Pcs",500,"Good Quality  /  0.6mm, Smooth writing.",null,null,null,0]
[49,"Pen - Gel","Pcs",50,"Natraj  /  0.6mm, Smooth writing.",null,null,null,0]
[50,"Pen - Pilot","Pcs",200,"Pilot  /  pilot V7 cartridge system",null,null,null,0]
[51,"Pen - Shine","Pkt",20,"DOMS  /  Watet Colour pens 12 shades",null,null,null,0]
[52,"Pen - Table","Pcs",100,"Good Quality  /  Table holder ball point pen",null,null,null,0]
[53,"Pen Stand","Pcs",20,"COMIX  /  Model - B2215, Multicolour",null,null,null,0]
[54,"Pencils","Pcs",100,"Natraj  /  Natraj pencil with sharpner and eraser.",null,null,null,0]
[55,"Pencils - Colour","Box",25,"DOMS  /  Colour pencil with sharpner- 12 shades (L)",null,null,null,0]
[56,"Photo Paper","Pkt",100,"Oddy  /  Oddy A4 Size180 Gsm Glossy Photo Paper",null,null,null,0]
[57,"Pin / White boards ","Pcs",100,"Good Quality  /  Very Strong magnetic for holding document,",null,null,null,0]
[58,"Pins for pin boards","Pkt",25,"Good Quality  /  Multi colour, steel point and 50 pcs.",null,null,null,0]
[59,"Post it/sticky notes - Flags","Pkt",25,"Good Quality  /  Size - 12.7x43.7 mm, For indexing,tabbing, marking and colour coding.",null,null,null,0]
[60,"Post it/sticky notes, standard 3\" X 3\"","Pkts",100,"Good Quality  /  Sticky Note - Multicolor Sticky Note (3in x 3in) 100 sheets",null,null,null,0]
[61,"Post it/sticky notes, standard 3\" X 5\"","Pkts",100,"Good Quality  /  Sticky Note - Multicolor Sticky Note (3in x 5in) 100 sheets",null,null,null,0]
[62,"Punching machine - big","Pcs",5,"Kangaro  /  Kangaro HD 1224 heavy duty Stapler",null,null,null,0]
[63,"Punching machine - medium","Pcs",10,"Kangaro  /  HS 45P Stapling capacity ",null,null,null,0]
[64,"Punching machine - small","Pcs",25,"Kangaro  /  Kangaro hand stapler No. 10.",null,null,null,0]
[65,"Register - Darta / Chalan","Pcs",10,"Nissan   /  Number - 4",null,null,null,0]
[66,"Register - Plain","Pcs",20,"Brothers  /  Number - 4",null,null,null,{"$f":"+G71+H71","v":0}]
[67,"Ruler/Scale - Metal, medium","Pcs",15,"Good Quality  /  Size -12 inch , hole at one side for hangin on hook, Thikness",null,null,null,0]
[68,"Ruler/Scale - Plastic, big","Pcs",15,"Good Quality  /  Size- 18 inch, thikness and clear of number",null,null,null,0]
[69,"Ruler/Scale - Plastic, medium","Pcs",25,"Good Quality  /  Size- 12 inch, thikness and clear of number",null,null,null,0]
[70,"Ruler/Scale - Plastic, small","Pcs",25,"Good Quality  /  Size- 6 inch, thikness and clear of number",null,null,null,0]
[71,"Mearsuring Tape - ","Pcs",10,"Good Quality  /  5 mitter, thikness and clear of number",null,null,null,0]
[72,"Scissor - Big / Tailor","Pcs",20,"Good Quality  /  Comfortable use,Utra sharpness, for Cloth cutting",null,null,null,0]
[73,"Scissor - Normal","Pcs",50,"Oddy  /  Size - 7 '' for Paper cutting",null,null,null,0]
[74,"Sharpener - Machine Big","Pcs",5,"Good Quality  /  Durable and comfortable for use, removable blade for cleaning, Available in regular size.",null,null,null,0]
[75,"Sharpener - Normal","Pcs",40,"Natraj  /  Natraj 621 Sharpner,",null,null,null,0]
[76,"Stamp Pad","Pcs",50,"Camlin  /  Camlin Deluxe Stamp pad. Colour - Black",null,null,null,0]
[77,"Stapler - Big","Pcs",10,"Kangaro  /  Kangaro Hd-23 S 13 Heavy duty stapler",null,null,null,0]
[78,"Stapler - medium","Pcs",25,"Kangaro  /  `Kangaro Hd - 45 quick loading stapleri",null,null,null,0]
[79,"Stapler - normal","Pcs",50,"Kangaro  /  Kangaro no.10",null,null,null,0]
[80,"Stapler Pin Remover","Pcs",50,"Good Quality  /  eassy to handle",null,null,null,0]
[81,"Stapler pins - big","Pkts",100,"Kangaro  /  Size - 23/17",null,null,null,0]
[82,"Stapler pins - medium, (24/6)","Pkts",100,"Kangaro  /  Size - 24/6",null,null,null,0]
[83,"Stapler pins - normal","Pkts",300,"Kangaro  /  Size - no.10 - 1M",null,null,null,0]
[84,"Stock Ledger  #6","Pcs",25,"  /  Number - 6",null,null,null,0]
[85,"Stock Ledger #4","Pcs",25,"  /  Number - 4",null,null,null,0]
[86,"Tape - Cartoon","Roll",200,"Mexim  /  Size - 2 inches, Transparent",null,null,null,0]
[87,"Tape - Cartoon","Roll",200,"Mexim  /  Size - 2 inches, brown",null,null,null,0]
[88,"Tape - Cello","Roll",100,"Mexim  /  Size - 1 inch",null,null,null,0]
[89,"Tape - Cello","Roll",50,"Goldenpower  /  Size - small",null,null,null,0]
[90,"Tape - Double Side","Roll",50,"Oddy  /  Size - 1 inch",null,null,null,0]
[91,"Tape - Masking","Roll",50,"Oddy  /  Size - 1 inch",null,null,null,0]
[92,"Tape Dispenser Machine","Pcs",50,"Omega  /  Size - 1 inch",null,null,null,0]
[93,"Telephone Set ","Pcs",25,"Microtel  /  Model - 1510 CID",null,null,null,0]
[94,"Tester","Pcs",25,"Good Quality  /  Transparent Matrerial handle for better visibility for light",null,null,null,0]
[95,"Tipp-Ex","Pcs",50,"DOMS  /  Non-toxic Superior Correction pen with 7ml capacity.",null,null,null,0]
[96,"Tissue box","Box",300,"Good Quality  /  Premium Facial Box Tissue 100 Pulls 200 Sheets",null,null,null,0]
[97,"Toilet paper (3 ply)","Roll",2500,"Pasio  /  Toilet Tissue Roll 3Ply",null,null,null,0]
[98,"Transparent Folder","PKts",50,"Oddy  /  Sheet size - A4,viewing inside cleary.",null,null,null,0]
[99,"Transparent Sheets","Pkts",50,"Oddy  /  Sheet size - A4,Good Contrast image on clean background.",null,null,null,0]
[100,"Utility Knife Replacement Blade","Pkt",50,"Good Quality  /   18mm Blade 10 pcs/Pkt",null,null,null,0]
[101,"Whistle","Pcs",50,"Good Quality  /  Plastic body normal size",null,null,null,0]
[102,"Multi plug","pcs",50,"Good Qualit /6 plug Multi use",null,null,null,0]
[]
["* The service will be provided in a need basis \n*Above rate is valid for 2 years and further extension can be made upon mutual understanding between both parties\n*Quoted rate are inclusive of VAT/TAX\n* We agree all the terms and condition as per the TOR. Also for the bid evaluation purpose we have attached all the reference documents and information\n* We have specifed the brand name on remark/additional information columnt(where applicable)\n*Apart from the above items, we also have quoted other relevant items attached(Yes/No)\n"]
["Name of Bidder and Designation:"]
["Signature of Bidder: "]
["Name of the Organization: "]
["Address:"]
["Contact Number & E-mali :-"]
["Date: "]
[]
[]
["Company Stamp:"]